bitfinex/quotes_BTCUSD_20230901
["timestamp","ask_amount","ask_price","bid_price","bid_amount"]
[1693567406208,0.49601775,26015.0,26014.0,0.763789]
[1693567406571,0.35709775,26015.0,26014.0,0.763789]
[1693567406772,0.20397775,26015.0,26014.0,0.763789]
[1693567406984,0.29221775,26015.0,26014.0,0.763789]
[1693567407262,0.14399775,26015.0,26014.0,1.063789]
[1693567407443,0.14243775,26015.0,26014.0,1.063789]
[1693567407672,0.14333775,26015.0,26014.0,1.063789]
[1693567407791,0.14387775,26015.0,26014.0,1.063789]
[1693567408153,0.14645775,26015.0,26014.0,1.063789]
[1693567408347,0.14747775,26015.0,26014.0,1.063789]
[1693567408551,0.14693775,26015.0,26014.0,1.063789]
[1693567408752,0.14657775,26015.0,26014.0,1.063789]
[1693567408927,0.14591775,26015.0,26014.0,1.063789]
[1693567409134,0.14597775,26015.0,26014.0,1.063789]
[1693567409331,0.14615775,26015.0,26014.0,1.063789]
[1693567409531,0.14675775,26015.0,26014.0,1.063789]
[1693567409740,0.14921775,26015.0,26014.0,1.063789]
[1693567409935,0.14933775,26015.0,26014.0,1.063789]
[1693567410258,0.14957775,26015.0,26014.0,1.063789]
[1693567410397,0.15065775,26015.0,26014.0,1.063789]
[1693567410982,0.15119775,26015.0,26014.0,1.063789]
[1693567411183,0.15131775,26015.0,26014.0,1.063789]
[1693567411381,0.15137775,26015.0,26014.0,1.063789]
[1693567411564,0.15149775,26015.0,26014.0,1.063789]
[1693567411769,0.15155775,26015.0,26014.0,1.063789]
[1693567412049,0.15233775,26015.0,26014.0,1.063789]
[1693567412261,0.15239775,26015.0,26014.0,1.063789]
[1693567412393,0.15245775,26015.0,26014.0,1.063789]
[1693567412599,0.15257775,26015.0,26014.0,1.063789]
[1693567412803,0.15239775,26015.0,26014.0,1.063789]
[1693567413005,0.15245775,26015.0,26014.0,1.063789]
[1693567413210,0.15161775,26015.0,26014.0,1.063789]
[1693567413418,0.15341775,26015.0,26014.0,1.063789]
[1693567413608,0.15359775,26015.0,26014.0,1.063789]
[1693567413810,0.15365775,26015.0,26014.0,1.063789]
[1693567414072,0.14753775,26015.0,26014.0,1.063789]
[1693567414277,0.14447775,26015.0,26014.0,1.063789]
[1693567414437,0.14423775,26015.0,26014.0,1.063789]
[1693567414635,0.14447775,26015.0,26014.0,1.063789]
[1693567414823,0.14471775,26015.0,26014.0,1.063789]
[1693567415024,0.14477775,26015.0,26014.0,1.063789]
[1693567415307,0.14177775,26015.0,26014.0,1.063789]
[1693567415513,0.13607775,26015.0,26014.0,1.063789]
[1693567415668,0.13943775,26015.0,26014.0,1.063789]
[1693567415869,0.13949775,26015.0,26014.0,1.063789]
[1693567416075,0.13967775,26015.0,26014.0,1.063789]
[1693567416252,0.13985775,26015.0,26014.0,1.063789]
[1693567416449,0.14051775,26015.0,26014.0,1.063789]
[1693567416654,0.14171775,26015.0,26014.0,1.063789]
[1693567417040,0.14201775,26015.0,26014.0,1.063789]
[1693567417245,0.13991775,26015.0,26014.0,1.063789]
[1693567417426,0.14141775,26015.0,26014.0,1.063789]
[1693567417558,0.14219775,26015.0,26014.0,1.063789]
[1693567417767,0.14237775,26015.0,26014.0,1.063789]
[1693567417993,0.14195775,26015.0,26014.0,1.063789]
[1693567418194,0.14261775,26015.0,26014.0,1.063789]
[1693567418409,0.14267775,26015.0,26014.0,1.063789]
[1693567418579,0.14273775,26015.0,26014.0,1.063789]
[1693567418780,0.14297775,26015.0,26014.0,1.063789]
[1693567419004,0.14309775,26015.0,26014.0,1.063789]
[1693567419239,0.14339775,26015.0,26014.0,1.063789]
[1693567419436,0.14393775,26015.0,26014.0,1.063789]
[1693567419642,0.14399775,26015.0,26014.0,1.063789]
[1693567419956,0.14375775,26015.0,26014.0,1.063789]
[1693567420246,0.14579775,26015.0,26014.0,1.063789]
[1693567420484,0.15335775,26015.0,26014.0,1.063789]
[1693567420691,0.15263775,26015.0,26014.0,1.063789]
[1693567420895,0.15533775,26015.0,26014.0,1.063789]
[1693567421099,0.15209775,26015.0,26014.0,1.063789]
[1693567421308,0.15287775,26015.0,26014.0,1.063789]
[1693567421511,0.15263775,26015.0,26014.0,1.063789]
[1693567421692,0.15287775,26015.0,26014.0,1.063789]
[1693567421894,0.15107775,26015.0,26014.0,1.063789]
[1693567422097,0.15161775,26015.0,26014.0,1.063789]
[1693567422297,0.15473775,26015.0,26014.0,1.063789]
[1693567422426,0.15479775,26015.0,26014.0,1.063789]
[1693567422856,0.15443775,26015.0,26014.0,1.063789]
[1693567423059,0.15425775,26015.0,26014.0,1.063789]
[1693567423369,0.15431775,26015.0,26014.0,1.063789]
[1693567423751,0.15371775,26015.0,26014.0,1.063789]
[1693567423927,0.15419775,26015.0,26014.0,1.063789]
[1693567424133,0.15563775,26015.0,26014.0,1.063789]
[1693567424287,0.27445775,26015.0,26014.0,1.063789]
[1693567424493,0.44005775,26015.0,26014.0,1.063789]
[1693567424700,0.31117775,26015.0,26014.0,1.063789]
[1693567424929,0.44221775,26015.0,26014.0,1.063789]
[1693567425097,0.44185775,26015.0,26014.0,1.063789]
[1693567425300,0.44209775,26015.0,26014.0,1.063789]
[1693567425501,0.44245775,26015.0,26014.0,1.063789]
[1693567425704,0.44209775,26015.0,26014.0,1.063789]
[1693567425876,0.44305775,26015.0,26014.0,1.063789]
[1693567426104,0.45049775,26015.0,26014.0,1.063789]
[1693567426338,0.45073775,26015.0,26014.0,1.063789]
[1693567426560,0.45121775,26015.0,26014.0,1.063789]
[1693567426750,0.45277775,26015.0,26014.0,1.063789]
[1693567426898,0.45421775,26015.0,26014.0,1.063789]
[1693567427136,0.45637775,26015.0,26014.0,1.063789]
[1693567427343,0.45769775,26015.0,26014.0,1.063789]
[1693567427568,0.46345775,26015.0,26014.0,1.063789]
[1693567427716,0.46285775,26015.0,26014.0,1.063789]
[1693567428078,0.46249775,26015.0,26014.0,1.063789]
[1693567428291,0.47005775,26015.0,26014.0,1.063789]
[1693567428416,0.45757775,26015.0,26014.0,0.763789]
[1693567428617,0.45985775,26015.0,26014.0,0.763789]
[1693567428820,0.45961775,26015.0,26014.0,0.763789]
[1693567429021,0.45937775,26015.0,26014.0,0.763789]
[1693567429289,0.45913775,26015.0,26014.0,0.763789]
[1693567429511,0.45889775,26015.0,26014.0,0.763789]
[1693567429710,0.45865775,26015.0,26014.0,0.763789]
[1693567429926,0.45853775,26015.0,26014.0,0.763789]
[1693567430114,0.45781775,26015.0,26014.0,0.763789]
[1693567430261,0.45769775,26015.0,26014.0,0.763789]
[1693567430606,0.45745775,26015.0,26014.0,0.763789]
[1693567430906,0.45709775,26015.0,26014.0,0.763789]
[1693567431124,0.45865775,26015.0,26014.0,0.763789]
[1693567431272,0.45673775,26015.0,26014.0,0.763789]
[1693567431474,0.45649775,26015.0,26014.0,0.763789]
[1693567431873,0.45589775,26015.0,26014.0,0.763789]
[1693567432092,0.45565775,26015.0,26014.0,0.763789]
[1693567432291,0.45589775,26015.0,26014.0,0.763789]
[1693567432497,0.45721775,26015.0,26014.0,0.763789]
[1693567432726,0.45709775,26015.0,26014.0,0.763789]
[1693567432918,0.45661775,26015.0,26014.0,0.763789]
[1693567433119,0.45601775,26015.0,26014.0,0.763789]
[1693567433519,0.45577775,26015.0,26014.0,0.763789]
[1693567433753,0.45421775,26015.0,26014.0,0.763789]
[1693567433938,0.45397775,26015.0,26014.0,0.763789]
[1693567434135,0.45385775,26015.0,26014.0,0.763789]
[1693567434342,0.45373775,26015.0,26014.0,0.763789]
[1693567434517,0.45361775,26015.0,26014.0,0.763789]
[1693567434736,0.45349775,26015.0,26014.0,0.763789]
[1693567434938,0.45337775,26015.0,26014.0,0.763789]
[1693567435340,0.45289775,26015.0,26014.0,0.763789]
[1693567435587,0.45277775,26015.0,26014.0,0.763789]
[1693567436263,0.45229775,26015.0,26014.0,0.763789]
[1693567436468,0.46057775,26015.0,26014.0,0.763789]
[1693567436789,0.45313775,26015.0,26014.0,0.763789]
[1693567436930,0.45217775,26015.0,26014.0,0.763789]
[1693567437169,0.45145775,26015.0,26014.0,0.763789]
[1693567437374,0.45133775,26015.0,26014.0,0.763789]
[1693567437623,0.45085775,26015.0,26014.0,0.763789]
[1693567437825,0.45073775,26015.0,26014.0,0.763789]
[1693567438030,0.45061775,26015.0,26014.0,0.763789]
[1693567438457,0.45001775,26015.0,26014.0,0.763789]
[1693567438755,0.44977775,26015.0,26014.0,0.763789]
[1693567438911,0.45025775,26015.0,26014.0,0.763789]
[1693567439273,0.45013775,26015.0,26014.0,0.763789]
[1693567439604,0.45205775,26015.0,26014.0,0.763789]
[1693567439810,0.45013775,26015.0,26014.0,0.763789]
[1693567440564,0.45193775,26015.0,26014.0,0.763789]
[1693567440759,0.45229775,26015.0,26014.0,0.763789]
[1693567440966,0.45181775,26015.0,26014.0,0.763789]
[1693567441191,0.45037775,26015.0,26014.0,0.763789]
[1693567441408,0.45169775,26015.0,26014.0,0.763789]
[1693567441526,0.45145775,26015.0,26014.0,0.763789]
[1693567441727,0.45001775,26015.0,26014.0,0.763789]
[1693567441929,0.44977775,26015.0,26014.0,0.763789]
[1693567442121,0.44929775,26015.0,26014.0,0.763789]
[1693567442660,0.44917775,26015.0,26014.0,0.763789]
[1693567443195,0.44905775,26015.0,26014.0,0.763789]
[1693567443460,0.44833775,26015.0,26014.0,0.763789]
[1693567443660,0.44857775,26015.0,26014.0,0.763789]
[1693567444016,0.44833775,26015.0,26014.0,0.763789]
[1693567444416,0.44617775,26015.0,26014.0,0.763789]
[1693567444823,0.44605775,26015.0,26014.0,0.763789]
[1693567445007,0.44497775,26015.0,26014.0,0.763789]
[1693567445224,0.44545775,26015.0,26014.0,0.763789]
[1693567445587,0.44509775,26015.0,26014.0,0.763789]
[1693567445798,0.44521775,26015.0,26014.0,0.763789]
[1693567446006,0.44509775,26015.0,26014.0,0.763789]
[1693567446414,0.30169775,26015.0,26014.0,0.763789]
[1693567446566,0.30187775,26015.0,26014.0,0.763789]
[1693567446775,0.30007775,26015.0,26014.0,0.763789]
[1693567446980,0.30025775,26015.0,26014.0,0.763789]
[1693567447157,0.30043775,26015.0,26014.0,0.763789]
[1693567447555,0.30157775,26015.0,26014.0,0.763789]
[1693567448012,0.30079775,26015.0,26014.0,0.763789]
[1693567448413,0.29941775,26015.0,26014.0,0.763789]
[1693567448567,0.29947775,26015.0,26014.0,0.763789]
[1693567448979,0.29923775,26015.0,26014.0,0.763789]
[1693567449363,0.29911775,26015.0,26014.0,0.763789]
[1693567449702,0.29839775,26015.0,26014.0,0.763789]
[1693567449903,0.29863775,26015.0,26014.0,0.763789]
[1693567450525,0.29869775,26015.0,26014.0,0.763789]
[1693567450720,0.29851775,26015.0,26014.0,0.763789]
[1693567450906,0.29869775,26015.0,26014.0,0.763789]
[1693567451104,0.29863775,26015.0,26014.0,0.763789]
[1693567451626,0.29899775,26015.0,26014.0,0.763789]
[1693567451826,0.29923775,26015.0,26014.0,0.763789]
[1693567452206,0.29911775,26015.0,26014.0,0.763789]
[1693567452427,0.29923775,26015.0,26014.0,0.763789]
[1693567452643,0.29743775,26015.0,26014.0,0.763789]
[1693567452846,0.29749775,26015.0,26014.0,0.763789]
[1693567452987,0.29755775,26015.0,26014.0,0.763789]
[1693567453394,0.29839775,26015.0,26014.0,0.763789]
[1693567453790,0.29851775,26015.0,26014.0,0.763789]
[1693567453993,0.30037775,26015.0,26014.0,0.763789]
[1693567454193,0.30043775,26015.0,26014.0,0.763789]
[1693567454420,0.30049775,26015.0,26014.0,0.763789]
[1693567454621,0.30043775,26015.0,26014.0,0.763789]
[1693567454962,0.30049775,26015.0,26014.0,0.763789]
[1693567455159,0.30055775,26015.0,26014.0,0.763789]
[1693567455377,0.30037775,26015.0,26014.0,0.763789]
[1693567455521,0.30055775,26015.0,26014.0,0.763789]
[1693567455908,0.30115775,26015.0,26014.0,0.763789]
[1693567456124,0.30169775,26015.0,26014.0,0.763789]
[1693567456330,0.30217775,26015.0,26014.0,0.763789]
[1693567456549,0.30211775,26015.0,26014.0,0.763789]
[1693567456752,0.30127775,26015.0,26014.0,0.763789]
[1693567457007,0.29989775,26015.0,26014.0,0.763789]
[1693567457439,0.29977775,26015.0,26014.0,0.763789]
[1693567457650,0.29983775,26015.0,26014.0,0.763789]
[1693567457991,0.30169775,26015.0,26014.0,0.763789]
[1693567458191,0.30229775,26015.0,26014.0,0.763789]
[1693567458560,0.30235775,26015.0,26014.0,0.763789]
[1693567458767,0.30289775,26015.0,26014.0,0.763789]
[1693567459217,0.30265775,26015.0,26014.0,0.763789]
[1693567459753,0.30259775,26015.0,26014.0,0.763789]
[1693567459957,0.30277775,26015.0,26014.0,0.763789]
[1693567460176,0.30343775,26015.0,26014.0,0.763789]
[1693567460372,0.30319775,26015.0,26014.0,0.763789]
[1693567460599,0.30337775,26015.0,26014.0,0.763789]
[1693567460757,0.30343775,26015.0,26014.0,0.763789]
[1693567461315,0.30403775,26015.0,26014.0,0.763789]
[1693567461516,0.30355775,26015.0,26014.0,0.763789]
[1693567461741,0.30361775,26015.0,26014.0,0.763789]
[1693567462011,0.30367775,26015.0,26014.0,0.763789]
[1693567462401,0.30349775,26015.0,26014.0,0.763789]
[1693567463081,0.30301775,26015.0,26014.0,0.763789]
[1693567463282,0.30325775,26015.0,26014.0,0.763789]
[1693567463437,0.30265775,26015.0,26014.0,0.763789]
[1693567463642,0.30301775,26015.0,26014.0,0.763789]
[1693567463841,0.30247775,26015.0,26014.0,0.763789]
[1693567464052,0.30067775,26015.0,26014.0,0.763789]
[1693567464257,0.30049775,26015.0,26014.0,0.763789]
[1693567464686,0.30061775,26015.0,26014.0,0.763789]
[1693567465001,0.30073775,26015.0,26014.0,0.763789]
[1693567465185,0.30049775,26015.0,26014.0,0.763789]
[1693567465381,0.30073775,26015.0,26014.0,0.763789]
[1693567465608,0.29383775,26015.0,26014.0,0.763789]
[1693567465753,0.29293775,26015.0,26014.0,0.763789]
[1693567465942,0.29299775,26015.0,26014.0,0.763789]
[1693567466535,0.29179775,26015.0,26014.0,0.763789]
[1693567466643,0.29035775,26015.0,26014.0,0.763789]
[1693567466844,0.29131775,26015.0,26014.0,0.763789]
[1693567467108,0.29113775,26015.0,26014.0,0.763789]
[1693567467312,0.29029775,26015.0,26014.0,0.763789]
[1693567467618,0.29047775,26015.0,26014.0,0.763789]
[1693567467784,0.29149775,26015.0,26014.0,0.763789]
[1693567467968,0.29179775,26015.0,26014.0,0.763789]
[1693567468179,0.29173775,26015.0,26014.0,0.763789]
[1693567468396,0.29179775,26015.0,26014.0,0.763789]
[1693567468600,0.29161775,26015.0,26014.0,0.763789]
[1693567468823,0.29167775,26015.0,26014.0,0.763789]
[1693567469023,0.28813775,26015.0,26014.0,0.763789]
[1693567469221,0.28819775,26015.0,26014.0,0.763789]
[1693567469590,0.28837775,26015.0,26014.0,0.763789]
[1693567469800,0.28873775,26015.0,26014.0,0.763789]
[1693567470002,0.27931775,26015.0,26014.0,0.763789]
[1693567470207,0.27403775,26015.0,26014.0,0.763789]
[1693567470401,0.27415775,26015.0,26014.0,0.763789]
[1693567470626,0.27199775,26015.0,26014.0,0.763789]
[1693567470827,0.27397775,26015.0,26014.0,0.763789]
[1693567471027,0.27403775,26015.0,26014.0,0.763789]
[1693567471209,0.27415775,26015.0,26014.0,0.763789]
[1693567471407,0.27421775,26015.0,26014.0,0.763789]
[1693567471607,0.27505775,26015.0,26014.0,0.763789]
[1693567471958,0.27511775,26015.0,26014.0,0.763789]
[1693567472089,0.27517775,26015.0,26014.0,0.763789]
[1693567472492,0.27523775,26015.0,26014.0,0.763789]
[1693567472694,0.27589775,26015.0,26014.0,0.763789]
[1693567472900,0.27601775,26015.0,26014.0,0.763789]
[1693567473079,0.27619775,26015.0,26014.0,0.763789]
[1693567473277,0.27625775,26015.0,26014.0,0.763789]
[1693567473476,0.27529775,26015.0,26014.0,0.763789]
[1693567473694,0.27535775,26015.0,26014.0,0.763789]
[1693567473897,0.27607775,26015.0,26014.0,0.763789]
[1693567474077,0.27625775,26015.0,26014.0,0.763789]
[1693567474277,0.27631775,26015.0,26014.0,0.763789]
[1693567474660,0.27625775,26015.0,26014.0,0.763789]
[1693567475171,0.27619775,26015.0,26014.0,0.763789]
[1693567475525,0.27595775,26015.0,26014.0,0.763789]
[1693567475751,0.27601775,26015.0,26014.0,0.763789]
[1693567476036,0.27607775,26015.0,26014.0,0.763789]
[1693567476407,0.27619775,26015.0,26014.0,0.763789]
[1693567476615,0.27625775,26015.0,26014.0,0.763789]
[1693567476818,0.27667775,26015.0,26014.0,0.763789]
[1693567477022,0.27673775,26015.0,26014.0,0.763789]
[1693567477343,0.27679775,26015.0,26014.0,0.763789]
[1693567477741,0.27643775,26015.0,26014.0,0.763789]
[1693567477882,0.27649775,26015.0,26014.0,0.763789]
[1693567478081,0.27709775,26015.0,26014.0,0.763789]
[1693567478281,0.27703775,26015.0,26014.0,0.763789]
[1693567478507,0.27709775,26015.0,26014.0,0.763789]
[1693567478732,0.27745775,26015.0,26014.0,0.763789]
[1693567478933,0.27769775,26015.0,26014.0,0.763789]
[1693567479337,0.27775775,26015.0,26014.0,0.763789]
[1693567479497,0.27781775,26015.0,26014.0,0.763789]
[1693567479696,0.27787775,26015.0,26014.0,0.763789]
[1693567479924,0.27805775,26015.0,26014.0,0.763789]
[1693567480119,0.27835775,26015.0,26014.0,0.763789]
[1693567480574,0.27829775,26015.0,26014.0,0.763789]
[1693567481086,0.27835775,26015.0,26014.0,0.763789]
[1693567481390,0.27973775,26015.0,26014.0,0.763789]
[1693567482201,0.27769775,26015.0,26014.0,0.763789]
[1693567482373,0.27979775,26015.0,26014.0,0.763789]
[1693567482587,0.27757775,26015.0,26014.0,0.763789]
[1693567482787,0.27763775,26015.0,26014.0,0.763789]
[1693567482983,0.27955775,26015.0,26014.0,0.763789]
[1693567483300,0.28015775,26015.0,26014.0,0.763789]
[1693567483508,0.27997775,26015.0,26014.0,0.763789]
[1693567483710,0.27679775,26015.0,26014.0,0.763789]
[1693567483927,0.27805775,26015.0,26014.0,0.763789]
[1693567484142,0.27703775,26015.0,26014.0,0.763789]
[1693567484310,0.27709775,26015.0,26014.0,0.763789]
[1693567484519,0.27895775,26015.0,26014.0,0.763789]
[1693567484698,0.27751775,26015.0,26014.0,0.763789]
[1693567484893,0.27577775,26015.0,26014.0,0.763789]
[1693567485102,0.27565775,26015.0,26014.0,0.763789]
[1693567485379,0.27571775,26015.0,26014.0,0.763789]
[1693567485578,0.27577775,26015.0,26014.0,0.763789]
[1693567485780,0.27475775,26015.0,26014.0,0.763789]
[1693567486242,0.27409775,26015.0,26014.0,0.763789]
[1693567486446,0.27421775,26015.0,26014.0,0.763789]
[1693567486576,0.27205775,26015.0,26014.0,0.763789]
[1693567486796,0.27235775,26015.0,26014.0,0.763789]
[1693567486994,0.27241775,26015.0,26014.0,0.763789]
[1693567487195,0.27247775,26015.0,26014.0,0.763789]
[1693567487399,0.27541775,26015.0,26014.0,0.763789]
[1693567487661,0.27361775,26015.0,26014.0,0.763789]
[1693567487870,0.27367775,26015.0,26014.0,0.763789]
[1693567488078,0.27403775,26015.0,26014.0,0.763789]
[1693567488277,0.27181775,26015.0,26014.0,0.763789]
[1693567488483,0.27301775,26015.0,26014.0,0.763789]
[1693567488685,0.27037775,26015.0,26014.0,0.763789]
[1693567488946,0.26761775,26015.0,26014.0,0.763789]
[1693567489254,0.26785775,26015.0,26014.0,0.763789]
[1693567489479,0.26821775,26015.0,26014.0,0.763789]
[1693567489675,0.27169775,26015.0,26014.0,0.763789]
[1693567489795,0.26767775,26015.0,26014.0,0.763789]
[1693567489996,0.26887775,26015.0,26014.0,0.763789]
[1693567490199,0.27091775,26015.0,26014.0,0.763789]
[1693567490416,0.27061775,26015.0,26014.0,0.763789]
[1693567490611,0.27049775,26015.0,26014.0,0.763789]
[1693567490830,0.26377775,26015.0,26014.0,0.763789]
[1693567491035,0.26335775,26015.0,26014.0,0.763789]
[1693567491258,0.26359775,26015.0,26014.0,0.763789]
[1693567491433,0.26593775,26015.0,26014.0,0.763789]
[1693567491633,0.26575775,26015.0,26014.0,0.763789]
[1693567491856,0.26515775,26015.0,26014.0,0.763789]
[1693567492201,0.26527775,26015.0,26014.0,0.763789]
[1693567492379,0.26731775,26015.0,26014.0,0.763789]
[1693567492600,0.26863775,26015.0,26014.0,0.763789]
[1693567492811,0.27121775,26015.0,26014.0,0.763789]
[1693567493001,0.26923775,26015.0,26014.0,0.763789]
[1693567493238,0.26899775,26015.0,26014.0,0.763789]
[1693567493439,0.26941775,26015.0,26014.0,0.763789]
[1693567493620,0.26935775,26015.0,26014.0,0.763789]
[1693567493792,0.26785775,26015.0,26014.0,0.763789]
[1693567493971,0.26821775,26015.0,26014.0,0.763789]
[1693567494238,0.26779775,26015.0,26014.0,0.763789]
[1693567494438,0.26773775,26015.0,26014.0,0.763789]
[1693567494644,0.26821775,26015.0,26014.0,0.763789]
[1693567494848,0.26809775,26015.0,26014.0,0.763789]
[1693567495072,0.26935775,26015.0,26014.0,0.763789]
[1693567495268,0.27061775,26015.0,26014.0,0.763789]
[1693567495451,0.27037775,26015.0,26014.0,0.763789]
[1693567495655,0.27079775,26015.0,26014.0,0.763789]
[1693567495859,0.27013775,26015.0,26014.0,0.763789]
[1693567496169,0.27073775,26015.0,26014.0,0.763789]
[1693567496377,0.27049775,26015.0,26014.0,0.763789]
[1693567496603,0.27067775,26015.0,26014.0,0.763789]
[1693567496803,0.26869775,26015.0,26014.0,0.763789]
[1693567496939,0.26965775,26015.0,26014.0,0.763789]
[1693567497117,0.26977775,26015.0,26014.0,0.763789]
[1693567497318,0.27025775,26015.0,26014.0,0.763789]
[1693567497514,0.26959775,26015.0,26014.0,0.763789]
[1693567497761,0.26977775,26015.0,26014.0,0.763789]
[1693567497966,0.26641775,26015.0,26014.0,0.763789]
[1693567498171,0.26593775,26015.0,26014.0,0.763789]
[1693567498371,0.26779775,26015.0,26014.0,0.763789]
[1693567498592,0.26827775,26015.0,26014.0,0.763789]
[1693567498836,0.26875775,26015.0,26014.0,0.763789]
[1693567499044,0.25939775,26015.0,26014.0,0.763789]
[1693567499226,0.26077775,26015.0,26014.0,0.763789]
[1693567499427,0.26059775,26015.0,26014.0,0.763789]
[1693567499772,0.26083775,26015.0,26014.0,0.763789]
[1693567499972,0.25717775,26015.0,26014.0,0.763789]
[1693567500203,0.24997775,26015.0,26014.0,0.8557533]
[1693567500402,0.24997775,26015.0,26014.0,1.1557533]
[1693567500610,0.17689775,26015.0,26014.0,1.1557533]
[1693567500978,0.05849775,26015.0,26014.0,1.1557533]
[1693567501148,0.05849775,26015.0,26014.0,1.56284008]
[1693567501365,0.05849775,26015.0,26014.0,4.63703339]
[1693567501570,0.11536,26021.0,26014.0,4.18319404]
[1693567501749,0.18798,26021.0,26014.0,1.237521]
[1693567501928,0.04615341,26015.0,26014.0,2.137521]
[1693567502124,0.12,26021.0,26014.0,2.218921]
[1693567502324,0.12,26021.0,26014.0,2.137521]
[1693567502554,0.27483471,26021.0,26014.0,2.137521]
[1693567502768,0.27483471,26021.0,26014.0,2.100521]
[1693567502964,0.34353471,26021.0,26014.0,2.100521]
[1693567503305,0.34311471,26021.0,26014.0,2.100521]
[1693567503513,0.34323471,26021.0,26014.0,2.100521]
[1693567503709,0.34413471,26021.0,26014.0,2.063521]
[1693567503909,0.34521471,26021.0,26014.0,2.063521]
[1693567504116,0.34521471,26021.0,26014.0,2.137521]
[1693567504277,0.34497471,26021.0,26014.0,2.100521]
[1693567504476,0.34431471,26021.0,26014.0,2.137521]
[1693567504703,0.34443471,26021.0,26014.0,2.137521]
[1693567504876,0.34719471,26021.0,26014.0,2.137521]
[1693567505084,0.34725471,26021.0,26014.0,2.137521]
[1693567505276,0.34257471,26021.0,26014.0,2.137521]
[1693567505478,0.34707471,26021.0,26014.0,2.100521]
[1693567505781,0.34827471,26021.0,26014.0,2.137521]
[1693567505977,0.34755471,26021.0,26014.0,2.137521]
[1693567506177,0.34761471,26021.0,26014.0,2.137521]
[1693567506417,0.34779471,26021.0,26014.0,2.137521]
[1693567506632,0.34755471,26021.0,26014.0,2.137521]
[1693567506799,0.34845471,26021.0,26014.0,2.137521]
[1693567507005,0.34875471,26021.0,26014.0,2.137521]
[1693567507347,0.34899471,26021.0,26014.0,2.137521]
[1693567507525,0.34767471,26021.0,26014.0,2.137521]
[1693567507731,0.34731471,26021.0,26014.0,2.137521]
[1693567507908,0.15483471,26021.0,26014.0,2.137521]
[1693567508104,0.15483471,26020.0,26014.0,2.137521]
[1693567508714,0.15483471,26020.0,26014.0,2.36785469]
[1693567509117,0.15483471,26020.0,26014.0,2.33085469]
[1693567509322,0.27323471,26020.0,26014.0,2.47500369]
[1693567509555,0.07122,26019.0,26014.0,2.47500369]
[1693567509748,0.07122,26019.0,26014.0,2.69625021]
[1693567509749,0.22125471,26019.0,26014.0,2.69625021]
[1693567509950,0.22071471,26019.0,26014.0,2.69625021]
[1693567510157,0.22059471,26019.0,26014.0,2.69625021]
[1693567510330,0.04624288,26018.0,26014.0,2.42891652]
[1693567510535,0.04624288,26018.0,26014.0,2.39191652]
[1693567510810,0.04624288,26018.0,26014.0,2.42891652]
[1693567511717,0.04624288,26018.0,26014.0,2.46591652]
[1693567512256,0.04624288,26018.0,26014.0,2.39191652]
[1693567512455,0.04624288,26018.0,26014.0,2.46591652]
[1693567515137,0.04624288,26018.0,26014.0,2.16591652]
[1693567519984,0.04624288,26018.0,26014.0,2.033293]
[1693567520196,0.16464288,26018.0,26014.0,2.033293]
[1693567520824,0.04624288,26018.0,26014.0,2.033293]
[1693567521034,0.04624288,26018.0,26014.0,2.30975921]
[1693567521443,0.22834,26020.0,26014.0,1.895179]
[1693567521648,0.1184,26019.0,26014.0,1.895179]
[1693567522267,0.2755,26019.0,26014.0,1.821179]
[1693567522418,0.2755,26019.0,26014.0,1.858179]
[1693567522625,0.2755,26019.0,26014.0,1.895179]
[1693567522835,0.2755,26019.0,26014.0,1.858179]
[1693567523236,0.2755,26019.0,26014.0,1.895179]
[1693567523459,0.2755,26019.0,26014.0,1.858179]
[1693567524935,0.2755,26019.0,26014.0,1.895179]
[1693567525336,0.05615265,26018.0,26014.0,1.895179]
[1693567526326,0.05615265,26018.0,26014.0,1.858179]
[1693567527111,0.05615265,26018.0,26014.0,1.895179]
[1693567527542,0.05615265,26018.0,26014.0,2.28226578]
[1693567529785,0.20895265,26018.0,26014.0,2.28226578]
[1693567529967,0.20895265,26018.0,26014.0,2.42037908]
[1693567530165,0.20895265,26018.0,26014.0,2.60452997]
[1693567530322,0.20895265,26018.0,26014.0,2.42037908]
[1693567530728,0.20895265,26018.0,26014.0,2.60452997]
[1693567531130,0.20895265,26018.0,26014.0,2.42037908]
[1693567531358,0.20895265,26018.0,26014.0,2.60452997]
[1693567532537,0.20895265,26018.0,26014.0,2.42037908]
[1693567533665,0.20895265,26018.0,26014.0,2.60452997]
[1693567533944,0.20895265,26018.0,26014.0,2.42037908]
[1693567534108,0.20895265,26018.0,26014.0,2.60452997]
[1693567536340,0.20895265,26018.0,26014.0,2.46641667]
[1693567538429,0.20895265,26018.0,26014.0,2.27641667]
[1693567538985,0.20895265,26018.0,26014.0,1.75747067]
[1693567540403,0.20895265,26018.0,26014.0,1.98780436]
[1693567540779,0.20895265,26018.0,26014.0,2.39143136]
[1693567541180,0.20895265,26018.0,26014.0,2.58143136]
[1693567542298,0.20895265,26018.0,26014.0,2.39728047]
[1693567545467,0.20895265,26018.0,26014.0,2.16694678]
[1693567548186,0.20895265,26018.0,26014.0,1.77986]
[1693567548399,0.20895265,26018.0,26014.0,0.802199]
[1693567548400,0.75783174,26018.0,26014.0,0.802199]
[1693567548607,0.60299703,26018.0,26014.0,0.802199]
[1693567548787,0.90099461,26018.0,26014.0,0.802199]
[1693567548926,0.82569461,26018.0,26014.0,0.802199]
[1693567549539,0.06876,26017.0,26014.0,0.802199]
[1693567549763,0.06624,26017.0,26014.0,0.802199]
[1693567550123,0.06882,26017.0,26014.0,0.802199]
[1693567550302,0.1184,26016.0,26014.0,0.765199]
[1693567550527,0.1184,26016.0,26014.0,0.94977636]
[1693567550952,0.1184,26016.0,26014.0,0.91277636]
[1693567551153,0.1184,26016.0,26014.0,0.94977636]
[1693567551591,0.1184,26016.0,26014.0,0.91277636]
[1693567551819,0.07668,26015.0,26014.0,0.765199]
[1693567552004,0.1886,26015.0,26014.0,0.85748882]
[1693567552228,0.188,26015.0,26014.0,0.89448882]
[1693567552345,0.18794,26015.0,26014.0,0.89448882]
[1693567552549,0.18656,26015.0,26014.0,0.89448882]
[1693567552745,0.18638,26015.0,26014.0,0.79982782]
[1693567553051,0.18884,26015.0,26014.0,0.76282782]
[1693567553264,0.18884,26015.0,26014.0,0.66675682]
[1693567553265,0.92053602,26015.0,26014.0,0.66675682]